bitfinex/quotes_BTCUSD_20250822
["timestamp","ask_amount","ask_price","bid_price","bid_amount"]
[1755864447667,1.57779259,112500.0,112490.0,0.002]
[1755864448086,1.57779259,112500.0,112490.0,0.001]
[1755864448306,6.57779259,112500.0,112480.0,0.0004]
[1755864448524,6.10746541,112490.0,112480.0,0.0004]
[1755864448746,1.19793062,112490.0,112480.0,0.0004]
[1755864449002,1.18128922,112490.0,112480.0,0.0004]
[1755864449218,1.17821922,112490.0,112480.0,0.0004]
[1755864449433,1.18128922,112490.0,112480.0,0.0004]
[1755864449866,0.83611225,112490.0,112480.0,0.00264535]
[1755864450070,1.19209383,112490.0,112480.0,0.00264535]
[1755864450317,1.19209383,112490.0,112480.0,0.00054535]
[1755864450733,1.19205383,112490.0,112480.0,0.00054535]
[1755864451152,1.19205383,112490.0,112480.0,0.00154535]
[1755864451580,1.19512383,112490.0,112480.0,0.00154535]
[1755864452010,1.19205383,112490.0,112480.0,0.00154535]
[1755864452193,1.19229383,112490.0,112480.0,0.00154535]
[1755864452429,1.15988858,112490.0,112480.0,0.00154535]
[1755864452870,1.15980858,112490.0,112480.0,0.00364535]
[1755864453085,1.15976858,112490.0,112480.0,0.00659535]
[1755864453299,0.78359363,112490.0,112480.0,0.00659535]
[1755864453509,1.12565865,112490.0,112480.0,0.00659535]
[1755864453746,0.53170819,112490.0,112480.0,0.00659535]
[1755864453956,0.69038819,112490.0,112480.0,0.00659535]
[1755864454369,1.03245516,112490.0,112480.0,0.00659535]
[1755864455205,1.06443314,112490.0,112480.0,0.00659535]
[1755864455461,1.06535314,112490.0,112480.0,0.00154535]
[1755864455668,1.06839314,112490.0,112480.0,0.00154535]
[1755864455864,1.06535314,112490.0,112480.0,0.00154535]
[1755864456144,1.16151681,112490.0,112480.0,0.00154535]
[1755864456357,1.15755681,112490.0,112480.0,0.00659535]
[1755864456563,1.15847681,112490.0,112480.0,0.00154535]
[1755864456801,1.16151681,112490.0,112480.0,0.00154535]
[1755864456966,1.1781551,112490.0,112480.0,0.00154535]
[1755864457340,1.1751151,112490.0,112480.0,0.00154535]
[1755864457544,1.14578212,112490.0,112480.0,0.00659535]
[1755864457738,0.78177794,112490.0,112480.0,0.00659535]
[1755864458133,1.11625023,112490.0,112480.0,0.00364535]
[1755864458337,1.1100103,112490.0,112480.0,0.00659535]
[1755864458501,1.1100103,112490.0,112480.0,0.00154535]
[1755864458701,1.14500828,112490.0,112480.0,0.00154535]
[1755864459109,1.18365402,112490.0,112480.0,0.00154535]
[1755864459353,1.20029482,112490.0,112480.0,0.00154535]
[1755864459522,1.23628957,112490.0,112480.0,0.00154535]
[1755864459722,1.26869482,112490.0,112480.0,0.00154535]
[1755864460534,1.23628957,112490.0,112480.0,0.00154535]
[1755864460980,1.23628957,112490.0,112480.0,0.00054535]
[1755864461194,0.90913753,112490.0,112480.0,0.00054535]
[1755864461398,1.2512045,112490.0,112480.0,0.00054535]
[1755864461574,1.28360975,112490.0,112480.0,0.00054535]
[1755864461789,1.28460975,112490.0,112480.0,0.00054535]
[1755864462385,1.28460832,112490.0,112480.0,0.00054535]
[1755864463029,1.37147797,112490.0,112480.0,0.00054535]
[1755864463245,1.3714779,112490.0,112480.0,0.00054535]
[1755864463679,1.28460825,112490.0,112480.0,0.00054535]
[1755864464744,6.28460825,112490.0,112480.0,0.00054535]
[1755864464985,6.62667522,112490.0,112480.0,0.00054535]
[1755864465187,6.61276029,112490.0,112480.0,0.00054535]
[1755864466333,6.27069332,112490.0,112480.0,0.00054535]
[1755864466536,6.35756297,112490.0,112480.0,0.00054535]
[1755864466751,6.69962994,112490.0,112480.0,0.00054535]
[1755864466963,6.69339005,112490.0,112480.0,0.00054535]
[1755864467142,6.69963101,112490.0,112480.0,1e-08]
[1755864467389,6.70795156,112490.0,112480.0,1e-08]
[1755864467821,6.56836165,112490.0,112480.0,1e-08]
[1755864468076,6.72664165,112490.0,112480.0,1e-08]
[1755864468490,6.7405577,112490.0,112480.0,1e-08]
[1755864468714,6.74055445,112490.0,112480.0,1e-08]
[1755864469542,6.74059445,112490.0,112480.0,1e-08]
[1755864469745,6.58127445,112490.0,112480.0,1e-08]
[1755864469953,6.73959445,112490.0,112480.0,1e-08]
[1755864470161,6.74059445,112490.0,112480.0,1e-08]
[1755864470338,6.73959445,112490.0,112480.0,1e-08]
[1755864470571,6.58127445,112490.0,112480.0,1e-08]
[1755864470796,6.74059445,112490.0,112480.0,1e-08]
[1755864471007,5.89814051,112490.0,112480.0,1e-08]
[1755864471213,6.3635295,112490.0,112480.0,1e-08]
[1755864471424,6.02146253,112490.0,112480.0,1e-08]
[1755864471631,6.02146253,112490.0,112480.0,0.00216001]
[1755864471632,5.87719043,112490.0,112480.0,0.00216001]
[1755864471840,6.24420084,112490.0,112480.0,0.00512001]
[1755864472270,6.24420084,112490.0,112480.0,0.00216001]
[1755864472486,6.2761789,112490.0,112480.0,0.00216001]
[1755864472743,6.2761789,112490.0,112480.0,0.00512001]
[1755864472948,6.2761789,112490.0,112480.0,0.00216001]
[1755864473802,6.2761789,112490.0,112480.0,1e-08]
[1755864474004,6.18123825,112490.0,112480.0,0.00512001]
[1755864474180,6.16206816,112490.0,112480.0,0.00512001]
[1755864474594,5.97061018,112490.0,112480.0,0.00512001]
[1755864474795,6.13005018,112490.0,112480.0,0.00512001]
[1755864475367,5.78798321,112490.0,112480.0,0.00512001]
[1755864475841,0.78798321,112490.0,112480.0,0.00512001]
[1755864476194,1.11613413,112490.0,112480.0,0.00512001]
[1755864476400,0.77406716,112490.0,112480.0,0.00512001]
[1755864476639,1.11613413,112490.0,112480.0,0.00512001]
[1755864477224,1.11605413,112490.0,112480.0,0.00512001]
[1755864477836,1.11815413,112490.0,112480.0,0.00216001]
[1755864478042,1.18043736,112490.0,112480.0,0.00512001]
[1755864478245,1.18253736,112490.0,112480.0,0.00512001]
[1755864478394,1.18253736,112490.0,112480.0,1e-08]
[1755864478395,1.27253211,112490.0,112480.0,1e-08]
[1755864478597,6.27253211,112490.0,112480.0,1e-08]
[1755864478922,6.24012686,112490.0,112480.0,1e-08]
[1755864479187,6.23701686,112490.0,112480.0,1e-08]
[1755864479629,6.25093202,112490.0,112480.0,1e-08]
[1755864480212,5.87188995,112490.0,112480.0,1e-08]
[1755864480419,6.28349727,112490.0,112480.0,1e-08]
[1755864480630,6.27726041,112490.0,112480.0,1e-08]
[1755864480904,6.28351596,112490.0,112480.0,1e-08]
[1755864481109,6.28662596,112490.0,112480.0,1e-08]
[1755864481315,6.28662594,112490.0,112480.0,1e-08]
[1755864481755,6.37349536,112490.0,112480.0,1e-08]
[1755864481964,6.71556233,112490.0,112480.0,1e-08]
[1755864482170,6.03142839,112490.0,112480.0,1e-08]
[1755864482368,6.40099394,112490.0,112480.0,1e-08]
[1755864482791,6.05892697,112490.0,112480.0,1e-08]
[1755864482999,6.7430603,112490.0,112480.0,1e-08]
[1755864484331,6.05892636,112490.0,112480.0,1e-08]
[1755864484974,6.7430603,112490.0,112480.0,1e-08]
[1755864485847,6.7430605,112490.0,112480.0,1e-08]
[1755864486467,0.51780938,112480.0,112470.0,1e-08]
[1755864486679,6.62538756,112480.0,112470.0,1e-08]
[1755864486881,6.64767416,112480.0,112470.0,1e-08]
[1755864487125,5.96354022,112480.0,112470.0,1e-08]
[1755864487343,6.64767416,112480.0,112470.0,1e-08]
[1755864487556,5.80321917,112480.0,112470.0,1e-08]
[1755864487787,5.96385917,112480.0,112470.0,1e-08]
[1755864488002,6.64799311,112480.0,112470.0,1e-08]
[1755864488216,6.38130791,112480.0,112470.0,1e-08]
[1755864488453,6.56216364,112480.0,112470.0,1e-08]
[1755864488670,6.54298791,112480.0,112470.0,1e-08]
[1755864488873,6.54298658,112480.0,112470.0,1e-08]
[1755864489079,6.54310658,112480.0,112470.0,1e-08]
[1755864489294,6.49405749,112480.0,112470.0,1e-08]
[1755864489511,6.5482039,112480.0,112470.0,1e-08]
[1755864489732,6.56212041,112480.0,112470.0,1e-08]
[1755864491194,6.56568641,112480.0,112470.0,1e-08]
[1755864492064,6.59809167,112480.0,112470.0,1e-08]
[1755864492700,6.6172662,112480.0,112470.0,1e-08]
[1755864493122,6.62558825,112480.0,112470.0,1e-08]
[1755864493992,6.46478825,112480.0,112470.0,1e-08]
[1755864494203,6.62474825,112480.0,112470.0,1e-08]
[1755864494419,6.46678825,112480.0,112470.0,1e-08]
[1755864494643,6.62966825,112480.0,112470.0,1e-08]
[1755864495211,5.92395763,112480.0,112470.0,1e-08]
[1755864495379,36.60809157,112480.0,112470.0,1e-08]
[1755864495580,0.17782519,112470.0,112460.0,1e-08]
[1755864495786,6.65971939,112470.0,112460.0,1e-08]
[1755864496210,5.66026548,112470.0,112460.0,1e-08]
[1755864496416,6.68646639,112470.0,112460.0,1e-08]
[1755864496973,6.43999674,112470.0,112460.0,1e-08]
[1755864497195,6.94163674,112470.0,112460.0,1e-08]
[1755864497415,6.3830652,112470.0,112460.0,1e-08]
[1755864497634,6.5450652,112470.0,112460.0,0.00510001]
[1755864497846,6.53774315,112470.0,112460.0,0.00510001]
[1755864498062,6.54605096,112470.0,112460.0,0.00510001]
[1755864498299,6.38405096,112470.0,112460.0,0.00510001]
[1755864498544,6.38405062,112470.0,112460.0,0.00510001]
[1755864498764,6.46415274,112470.0,112460.0,0.00510001]
[1755864498985,6.50346311,112470.0,112460.0,0.00510001]
[1755864499221,5.73244442,112470.0,112460.0,0.00510001]
[1755864499427,6.25457836,112470.0,112460.0,0.00510001]
[1755864499644,5.57044442,112470.0,112460.0,0.00510001]
[1755864499872,6.39998489,112470.0,112460.0,0.00510001]
[1755864500075,6.46521741,112470.0,112460.0,0.00510001]
[1755864500295,5.79300127,112470.0,112460.0,0.00510001]
[1755864500517,6.44424344,112470.0,112460.0,0.00510001]
[1755864500724,6.56401996,112470.0,112460.0,0.00610001]
[1755864501357,5.87988602,112470.0,112460.0,0.00610001]
[1755864501572,6.56301996,112470.0,112460.0,0.00610001]
[1755864501780,6.65079961,112470.0,112460.0,0.00100001]
[1755864501991,6.99591658,112470.0,112460.0,0.00200001]
[1755864502200,7.01255163,112470.0,112460.0,0.00200001]
[1755864502458,6.67048466,112470.0,112460.0,0.00200001]
[1755864502673,7.01255163,112470.0,112460.0,1e-08]
[1755864502876,0.21018175,112460.0,112450.0,0.00044]
[1755864503098,6.17806221,112460.0,112450.0,0.00044]
[1755864503808,6.26493186,112460.0,112450.0,0.00044]
[1755864504038,6.17806221,112460.0,112450.0,0.00255]
[1755864504274,5.84223282,112460.0,112450.0,0.00255]
[1755864504506,6.18429979,112460.0,112450.0,0.00044]
[1755864504755,5.85886493,112460.0,112450.0,0.00255]
[1755864504959,5.85886493,112460.0,112450.0,0.00044]
[1755864505209,6.2009319,112460.0,112450.0,0.00044]
[1755864505429,6.2009319,112460.0,112450.0,0.00255]
[1755864505699,6.63087155,112460.0,112450.0,1e-08]
[1755864505956,6.69931155,112460.0,112450.0,1e-08]
[1755864506434,6.69931155,112460.0,112440.0,1e-08]
[1755864506435,0.51785682,112450.0,112440.0,1e-08]
[1755864506668,6.59904559,112450.0,112440.0,1e-08]
[1755864506902,6.5761759,112450.0,112440.0,1e-08]
[1755864507138,6.59903986,112450.0,112440.0,1e-08]
[1755864507609,6.59920261,112450.0,112440.0,1e-08]
[1755864507829,5.94924472,112450.0,112440.0,1e-08]
[1755864508038,6.6003479,112450.0,112440.0,1e-08]
[1755864508257,6.4437949,112450.0,112440.0,1e-08]
[1755864508502,6.62706418,112450.0,112440.0,1e-08]
[1755864508734,6.66009494,112450.0,112440.0,1e-08]
[1755864508980,6.66009494,112450.0,112420.0,0.0004]
[1755864508981,0.51788846,112430.0,112420.0,0.0004]
[1755864509215,1.14395059,112430.0,112420.0,0.00497181]
[1755864509465,1.11186143,112430.0,112420.0,0.00497181]
[1755864509676,1.13861443,112430.0,112420.0,0.00497181]
[1755864510600,1.14067443,112430.0,112420.0,0.00497181]
[1755864510868,6.20343881,112430.0,112420.0,0.00497181]
[1755864511104,6.19385741,112430.0,112420.0,0.00597181]
[1755864511353,6.22003602,112430.0,112420.0,0.00298181]
[1755864511588,6.01948686,112430.0,112420.0,0.00597181]
[1755864511827,6.18750686,112430.0,112420.0,0.00597181]
[1755864512054,5.82313213,112430.0,112420.0,0.00597181]
[1755864512280,5.82107213,112430.0,112420.0,0.00597181]
[1755864512502,6.1631391,112430.0,112420.0,0.00597181]
[1755864512935,5.94157051,112430.0,112420.0,0.0061]
[1755864513140,6.17142727,112430.0,112420.0,0.0061]
[1755864513292,6.17142727,112430.0,112420.0,0.00311]
[1755864513501,6.00352727,112430.0,112420.0,0.0061]
[1755864513701,6.17158727,112430.0,112420.0,0.0061]
[1755864513905,6.16952727,112430.0,112420.0,0.0061]
[1755864514115,6.1632991,112430.0,112420.0,0.0061]
[1755864514322,6.1653591,112430.0,112420.0,0.0061]
[1755864514547,6.17158572,112430.0,112420.0,0.0061]
[1755864515160,6.1653591,112430.0,112420.0,0.0061]
[1755864515360,6.23008815,112430.0,112420.0,0.001]
[1755864515533,6.26912328,112430.0,112420.0,0.001]
[1755864515770,6.26912328,112430.0,112420.0,0.00311]
[1755864516111,6.26916331,112430.0,112420.0,0.0061]
[1755864516313,6.26916331,112430.0,112420.0,0.001]
[1755864516450,6.28576394,112430.0,112420.0,0.001]
[1755864517057,6.66393167,112430.0,112420.0,0.001]
[1755864517467,6.65001,112430.0,112420.0,1e-08]
[1755864518476,0.51790428,112420.0,112410.0,0.13951197]
[1755864518684,6.45862297,112420.0,112410.0,0.14162197]
[1755864518904,1.114256,112420.0,112410.0,0.14461197]
[1755864519104,0.79894503,112420.0,112410.0,0.14461197]
[1755864519331,1.48307897,112420.0,112410.0,0.14461197]
[1755864519541,0.63154503,112420.0,112410.0,0.14461197]
[1755864519750,1.140972,112420.0,112410.0,0.14461197]
[1755864519953,0.54466028,112420.0,112410.0,0.1671104]
[1755864520104,0.71198028,112420.0,112410.0,0.1671104]
[1755864520276,0.54466028,112420.0,112410.0,0.1671104]
[1755864520706,0.88672725,112420.0,112410.0,0.1681104]
[1755864521112,0.90064986,112420.0,112410.0,0.1681104]
[1755864521309,0.21858289,112420.0,112410.0,0.1703344]
[1755864521540,0.04067861,112420.0,112410.0,0.69032148]
[1755864521786,0.01392261,112420.0,112410.0,0.61752428]
[1755864522220,0.19182689,112420.0,112410.0,0.68596428]
[1755864522438,0.01392261,112420.0,112400.0,0.62712144]
[1755864522643,0.01392261,112420.0,112390.0,0.26276029]
[1755864522644,28.68691428,112400.0,112390.0,0.60276029]
[1755864522853,28.68691428,112400.0,112390.0,1.20717526]
[1755864523062,28.68691428,112400.0,112390.0,1.29617001]
[1755864523882,28.68705946,112400.0,112390.0,1.29617001]
[1755864524087,28.68705946,112400.0,112390.0,0.78694304]
[1755864524294,28.68705946,112400.0,112390.0,0.95410304]
[1755864524503,28.68705946,112400.0,112390.0,0.78663406]
[1755864524710,28.8649954,112400.0,112390.0,0.19134513]
[1755864524915,28.8649954,112400.0,112390.0,0.17389611]
[1755864525799,28.8649954,112400.0,112390.0,0.17789611]
[1755864526025,28.8649954,112400.0,112390.0,0.33905611]
[1755864526226,28.8649954,112400.0,112390.0,0.51600788]
[1755864526444,28.8649954,112400.0,112390.0,0.33809611]
[1755864527022,28.8649954,112400.0,112390.0,0.43759611]
[1755864527323,28.8649954,112400.0,112390.0,0.60475611]
[1755864527762,28.8649954,112400.0,112390.0,0.78270788]
[1755864527965,28.8649954,112400.0,112390.0,0.78566788]
[1755864528170,28.8649954,112400.0,112390.0,0.78558788]
[1755864528793,28.68705946,112400.0,112390.0,0.78558788]
[1755864528997,28.8649954,112400.0,112390.0,0.78558788]
[1755864529629,28.8649954,112400.0,112390.0,0.44059611]
[1755864529873,28.8649954,112400.0,112390.0,0.78538788]
[1755864530081,28.8649954,112400.0,112390.0,0.60743611]
[1755864530289,28.8649954,112400.0,112390.0,0.60739611]
[1755864530495,28.8649954,112400.0,112390.0,0.60731611]
[1755864530714,28.8649954,112400.0,112390.0,0.44059611]
[1755864530923,28.8649954,112400.0,112390.0,0.43760611]
[1755864531127,28.8649954,112400.0,112390.0,0.51736136]
[1755864531328,29.21002237,112400.0,112390.0,0.35072136]
[1755864531450,29.23677637,112400.0,112390.0,0.35072136]
[1755864531865,29.23381637,112400.0,112390.0,0.35072136]
[1755864532068,28.8917494,112400.0,112390.0,0.35072136]
[1755864532318,28.8947094,112400.0,112390.0,0.51736136]
[1755864532519,28.8947094,112400.0,112390.0,0.08191136]
[1755864532692,29.23177637,112400.0,112390.0,0.08191136]
[1755864532916,28.8897094,112400.0,112390.0,0.08191136]
[1755864533127,29.08895856,112400.0,112390.0,0.08191136]
[1755864533350,29.46405629,112400.0,112390.0,0.08191136]
[1755864533566,29.46405629,112400.0,112390.0,0.07891136]
[1755864533799,28.92211856,112400.0,112390.0,0.07891136]
[1755864533948,29.23177637,112400.0,112390.0,0.08091136]
[1755864534159,29.23177637,112400.0,112390.0,0.07791136]
[1755864534471,29.23177637,112400.0,112390.0,0.07991136]
[1755864534472,28.8897094,112400.0,112390.0,0.07991136]
[1755864534905,29.23177637,112400.0,112390.0,0.07991136]
[1755864535890,29.40021637,112400.0,112390.0,0.07991136]
[1755864536089,29.23177637,112400.0,112390.0,0.07991136]
[1755864536922,28.8897094,112400.0,112390.0,0.07991136]
[1755864537127,29.23177637,112400.0,112390.0,0.07991136]
[1755864537502,29.26480713,112400.0,112390.0,0.07991136]
[1755864537901,28.92274016,112400.0,112390.0,0.07991136]
[1755864538245,29.26480713,112400.0,112390.0,0.07991136]
[1755864538999,29.43340713,112400.0,112390.0,0.07991136]
[1755864539401,29.35169188,112400.0,112390.0,0.07991136]
[1755864539605,29.52029188,112400.0,112390.0,0.07991136]
[1755864539802,29.00962491,112400.0,112390.0,0.07991136]
[1755864540006,29.48754112,112400.0,112390.0,0.07991136]
[1755864540231,29.31866112,112400.0,112390.0,0.07991136]
[1755864540854,28.97659415,112400.0,112390.0,0.07991136]
[1755864541085,29.31866112,112400.0,112390.0,0.1160736]
[1755864541296,28.97659415,112400.0,112390.0,0.07991136]
[1755864541710,29.3325852,112400.0,112390.0,0.07991136]
[1755864541909,28.99051823,112400.0,112390.0,0.07991136]
[1755864542110,29.3325852,112400.0,112390.0,0.07991136]
[1755864542509,28.90363348,112400.0,112390.0,0.08191136]
[1755864542711,28.90067348,112400.0,112390.0,0.1182576]
[1755864542914,29.24570045,112400.0,112390.0,0.1182576]
[1755864543373,29.24570045,112400.0,112390.0,0.1162576]
[1755864543501,29.24274045,112400.0,112390.0,0.1182576]
[1755864543702,29.24570045,112400.0,112390.0,0.1182576]
[1755864544089,0.51795177,112390.0,112380.0,1e-08]
[1755864544331,1.35943038,112390.0,112380.0,1e-08]
[1755864544536,0.60985652,112390.0,112380.0,1e-08]
[1755864544746,0.95192349,112390.0,112380.0,1e-08]
[1755864544952,6.55585644,112390.0,112380.0,1e-08]
[1755864545175,6.48573657,112390.0,112380.0,1e-08]
[1755864545391,6.32846222,112390.0,112380.0,1e-08]
[1755864545609,6.49734222,112390.0,112380.0,1e-08]
[1755864545821,6.83940919,112390.0,112380.0,1e-08]
[1755864546031,0.46112215,112370.0,112360.0,0.07807045]
[1755864546245,1.31619609,112370.0,112360.0,0.07807045]
[1755864546455,1.31915609,112370.0,112360.0,0.07807045]
[1755864546702,1.45612134,112370.0,112360.0,0.07807045]
[1755864546912,0.51799928,112360.0,112350.0,1e-08]
[1755864547130,1.51733789,112360.0,112350.0,1e-08]
[1755864547639,0.17780419,112350.0,112340.0,0.07344986]
[1755864547782,1.12044288,112350.0,112340.0,0.07344986]
[1755864547995,0.47643611,112350.0,112340.0,0.07344986]
[1755864548228,0.30702119,112350.0,112340.0,0.07344986]
[1755864548430,0.98493538,112350.0,112340.0,0.07344986]
[1755864548892,0.98493538,112350.0,112340.0,0.10580249]
[1755864549102,1.29398796,112350.0,112340.0,0.07344986]
[1755864549318,0.87601333,112350.0,112340.0,0.07544986]
[1755864550028,0.19187939,112350.0,112340.0,0.08083524]
[1755864550242,0.87601333,112350.0,112340.0,0.07860986]
[1755864550473,0.0140752,112350.0,112340.0,0.29173084]
[1755864550699,0.0140752,112350.0,112340.0,0.35798546]
[1755864550906,0.0140752,112350.0,112340.0,0.44487021]
[1755864551149,0.12665662,112360.0,112340.0,0.44487021]
[1755864551386,0.1919276,112360.0,112350.0,0.34761513]
[1755864551624,0.1919276,112360.0,112350.0,0.18983304]
[1755864552115,0.54934878,112360.0,112350.0,0.18659304]
[1755864552357,0.54934878,112360.0,112350.0,0.01707304]
[1755864552602,0.17801513,112350.0,112340.0,0.31189412]
[1755864552851,0.18303513,112350.0,112340.0,0.24637412]
[1755864553091,0.54045631,112350.0,112340.0,0.07693412]
[1755864553304,0.18007513,112350.0,112340.0,0.07893412]
[1755864553555,0.53543631,112350.0,112340.0,0.07893412]
[1755864553791,0.53543631,112350.0,112340.0,0.26465517]
[1755864554041,0.53543631,112350.0,112340.0,0.08985517]
[1755864554042,0.54045631,112350.0,112340.0,0.08985517]
[1755864554278,0.62734106,112350.0,112340.0,0.07393412]
[1755864554519,1.15373557,112350.0,112340.0,0.07693412]
[1755864554737,0.17804682,112330.0,112320.0,0.08204993]
[1755864554957,1.49463393,112330.0,112320.0,0.08204993]
[1755864555172,1.13721275,112330.0,112320.0,0.08204993]
[1755864555634,1.1779244,112330.0,112320.0,0.08204993]
[1755864556257,1.19447057,112330.0,112320.0,0.08204993]
[1755864556466,1.19547057,112330.0,112320.0,0.08204993]
[1755864556916,1.20167218,112330.0,112320.0,0.08204993]
[1755864557334,1.02563057,112330.0,112320.0,0.08204993]
[1755864557536,1.03182966,112330.0,112320.0,0.09865599]
[1755864557764,0.64763048,112330.0,112320.0,0.08204993]
[1755864557996,0.19559299,112330.0,112320.0,0.25384993]
[1755864558211,0.55828417,112330.0,112320.0,0.08204993]
[1755864558415,0.20086299,112330.0,112320.0,0.08204993]
[1755864558618,0.55828417,112330.0,112320.0,0.08204993]
[1755864559440,0.55828417,112330.0,112320.0,0.09865599]
[1755864560096,0.55828417,112330.0,112320.0,0.08204993]
[1755864560288,0.55826425,112330.0,112320.0,0.08204993]
[1755864560492,0.18431682,112330.0,112320.0,0.08204993]
[1755864560701,0.55826448,112330.0,112320.0,0.08204993]
[1755864560908,0.64514923,112330.0,112320.0,0.08204993]
[1755864561119,0.65908397,112330.0,112320.0,0.08204993]
[1755864561534,0.30166279,112330.0,112320.0,0.08204993]
[1755864561750,0.65908397,112330.0,112320.0,0.11567599]
[1755864562187,0.65908397,112330.0,112320.0,0.11771599]
[1755864562405,0.63936749,112330.0,112320.0,0.11771599]
[1755864562621,0.28194631,112330.0,112320.0,0.11771599]
[1755864562827,0.63936749,112330.0,112320.0,0.11771599]
[1755864563535,0.64255749,112330.0,112320.0,0.08204993]
[1755864565825,0.28513631,112330.0,112320.0,0.08204993]
[1755864566041,0.66529053,112330.0,112320.0,0.08204993]
[1755864567069,0.30259935,112330.0,112320.0,0.08408993]
[1755864567294,0.66002053,112330.0,112320.0,0.08408993]
[1755864567507,0.57313578,112330.0,112320.0,0.11819099]
[1755864567712,28.74328665,112320.0,112310.0,0.25692064]
[1755864567928,28.56522398,112320.0,112310.0,0.43703917]
[1755864568558,28.56522398,112320.0,112310.0,0.52392392]
[1755864568773,28.56522398,112320.0,112310.0,1.23879412]
[1755864568993,28.56522398,112320.0,112310.0,0.88137294]
[1755864569197,28.56522398,112320.0,112310.0,1.23879412]
[1755864569402,28.46602082,112320.0,112310.0,1.26379412]
[1755864569622,28.46602082,112320.0,112310.0,1.31379412]
[1755864569623,28.24172022,112320.0,112310.0,1.31379412]
[1755864570047,28.24172022,112320.0,112310.0,1.14383412]
[1755864570261,28.24272022,112320.0,112310.0,1.31935412]
[1755864570475,28.24272022,112320.0,112310.0,1.32035412]
[1755864570688,28.24272022,112320.0,112310.0,0.96293294]
[1755864570942,28.24272022,112320.0,112310.0,1.31935412]
[1755864571161,28.24272022,112320.0,112310.0,0.96173294]
[1755864571383,28.24272022,112320.0,112310.0,0.96673294]
[1755864571598,28.24272022,112320.0,112310.0,0.96677294]
[1755864572017,28.24272022,112320.0,112310.0,0.99353694]
[1755864572235,28.24272022,112320.0,112310.0,1.35095812]
[1755864573268,28.24272022,112320.0,112310.0,0.99353694]
[1755864573676,28.24272022,112320.0,112310.0,1.35095812]
[1755864574309,28.02102374,112320.0,112310.0,1.35095812]
[1755864574932,28.02102374,112320.0,112310.0,0.94149294]
[1755864575093,28.02102374,112320.0,112310.0,0.87109392]
[1755864575297,28.02102374,112320.0,112310.0,0.70201392]
[1755864575546,28.02102374,112320.0,112310.0,0.87221392]
[1755864575737,28.02102374,112320.0,112310.0,0.70201392]
[1755864575958,28.02102374,112320.0,112310.0,0.88954294]
[1755864576274,28.02102374,112320.0,112310.0,0.70201392]
[1755864576477,28.02421374,112320.0,112310.0,0.87209392]
[1755864576896,28.02421374,112320.0,112310.0,0.87197392]
[1755864577118,28.20227641,112320.0,112310.0,0.35997392]
[1755864577316,28.20227641,112320.0,112310.0,0.52989392]
[1755864577511,28.20127641,112320.0,112310.0,0.51889392]
[1755864577736,28.20127641,112320.0,112310.0,0.34093539]
[1755864577941,28.55869759,112320.0,112310.0,0.17389539]
[1755864578255,28.55869759,112320.0,112310.0,0.43496917]
[1755864578700,28.02321374,112320.0,112310.0,0.43700917]
[1755864578908,28.02321374,112320.0,112310.0,0.43496917]
[1755864579715,28.02321374,112320.0,112310.0,0.43196917]
[1755864580120,28.02321374,112320.0,112310.0,0.43696917]
[1755864580500,28.02321374,112320.0,112310.0,0.43672917]
[1755864580695,28.20127641,112320.0,112310.0,0.43672917]
[1755864580918,28.02321374,112320.0,112310.0,0.43672917]
[1755864581598,28.55869759,112320.0,112310.0,0.43648917]
[1755864581959,28.20127641,112320.0,112310.0,0.43648917]
[1755864582348,28.55869759,112320.0,112310.0,0.25841064]
[1755864582788,28.55869759,112320.0,112310.0,0.25885064]
[1755864583199,28.55869759,112320.0,112310.0,0.08901064]
[1755864583428,28.20127641,112320.0,112310.0,0.25885064]
[1755864583564,28.55869759,112320.0,112310.0,0.25885064]
[1755864583973,28.20127641,112320.0,112310.0,0.25885064]
[1755864584381,28.55869759,112320.0,112310.0,0.25885064]
[1755864584856,28.20127641,112320.0,112310.0,0.08901064]
[1755864585062,28.55869759,112320.0,112310.0,0.25877064]
[1755864585262,28.20127641,112320.0,112310.0,0.25877064]
[1755864585466,28.55869759,112320.0,112310.0,0.25877064]
[1755864586756,28.20127641,112320.0,112310.0,0.25877064]
[1755864586948,28.55869759,112320.0,112310.0,0.25877064]
[1755864587150,28.55869759,112320.0,112310.0,0.25821064]
[1755864587554,28.55869759,112320.0,112310.0,0.43628917]
[1755864587756,28.20127641,112320.0,112310.0,0.43628917]
[1755864587937,28.55869759,112320.0,112310.0,0.43628917]
[1755864588991,28.55869759,112320.0,112310.0,0.26708917]
[1755864589232,28.55869759,112320.0,112310.0,0.43628917]
[1755864589690,28.55869759,112320.0,112310.0,0.25821064]
[1755864590358,28.55869759,112320.0,112310.0,0.08901064]
[1755864590598,28.20127641,112320.0,112310.0,0.25785064]
[1755864590826,28.55869759,112320.0,112310.0,0.25785064]
[1755864591051,28.55869759,112320.0,112310.0,0.25757064]
[1755864591270,28.55869759,112320.0,112310.0,0.08901064]
[1755864591479,28.55869759,112320.0,112310.0,0.25749064]
[1755864591839,28.20127641,112320.0,112310.0,0.25749064]
[1755864592043,28.20127641,112320.0,112310.0,0.25741064]
[1755864592044,28.55869759,112320.0,112310.0,0.25741064]
[1755864592834,28.20127641,112320.0,112310.0,0.25741064]
[1755864593031,28.55869759,112320.0,112310.0,0.25741064]
[1755864593238,28.20127641,112320.0,112310.0,0.25741064]
[1755864593502,28.55869759,112320.0,112310.0,0.25741064]
[1755864593797,28.02321374,112320.0,112310.0,0.43548917]
[1755864594012,28.20127641,112320.0,112310.0,0.43749917]
[1755864594139,28.55869759,112320.0,112310.0,0.43749917]
[1755864594510,28.02321374,112320.0,112310.0,0.43749917]
[1755864594714,28.02321374,112320.0,112310.0,0.43548917]
[1755864595429,28.38063492,112320.0,112310.0,0.43548917]
[1755864595568,28.55869759,112320.0,112310.0,0.43548917]
[1755864595779,28.02321374,112320.0,112310.0,0.43548917]
[1755864596179,28.02002374,112320.0,112310.0,0.43749917]
[1755864597714,28.02002374,112320.0,112310.0,0.52438392]
[1755864599199,28.02324374,112320.0,112310.0,0.52374392]
[1755864599843,28.02002374,112320.0,112310.0,0.52374392]
[1755864602128,28.02002374,112320.0,112310.0,0.86534392]
[1755864602336,28.02002374,112320.0,112310.0,0.86326392]
[1755864603165,28.02002374,112320.0,112310.0,0.86126392]
[1755864603583,28.02324374,112320.0,112310.0,0.85818392]
[1755864603791,28.02324374,112320.0,112310.0,0.69398392]
[1755864603994,28.02324374,112320.0,112310.0,0.86122392]
[1755864604195,28.02324374,112320.0,112310.0,0.75775422]
[1755864604403,28.36322113,112320.0,112310.0,0.92495422]
[1755864604792,28.02002374,112320.0,112310.0,0.92795422]
[1755864605991,28.02002374,112320.0,112310.0,1.29020063]
[1755864606205,28.02002374,112320.0,112310.0,0.94676324]
[1755864606456,28.02002374,112320.0,112310.0,0.88139294]
[1755864606885,28.02002374,112320.0,112310.0,0.94550995]
[1755864607092,28.02324374,112320.0,112310.0,0.94550995]
[1755864607305,28.02324374,112320.0,112310.0,0.94546995]
[1755864608329,28.02002374,112320.0,112310.0,0.94546995]